fUST/lending_fUST_20250126
["ID","MTS","AMOUNT","RATE_DAILY","PERIOD"]
[350422186,1737862232126,-197.04129189,0.00016314,2]
[350422187,1737862232135,-515.0516162,0.00016337,2]
[350422188,1737862232144,-500.0,0.00016437,2]
[350422189,1737862232154,-284.10605221,0.00016437,2]
[350422190,1737862232163,-268.2324444,0.00016437,2]
[350422191,1737862232172,-500.0,0.00016437,2]
[350422192,1737862232182,-500.0,0.00016437,2]
[350422193,1737862232191,-467.28321259,0.00016437,2]
[350422194,1737862232202,-500.0,0.00016437,2]
[350422195,1737862232211,-500.0,0.00016437,2]
[350422196,1737862232220,-500.0,0.00016437,2]
[350422197,1737862232230,-500.0,0.00016437,2]
[350422198,1737862232239,-519.06120247,0.00016437,2]
[350422199,1737862232249,-500.0,0.00016437,2]
[350422200,1737862232258,-500.0,0.00016437,2]
[350422201,1737862232267,-404.71243403,0.00016437,2]
[350422202,1737862232276,-380.7316574,0.00016437,2]
[350422203,1737862232285,-500.0,0.00016437,2]
[350422204,1737862232294,-500.0,0.00016437,2]
[350422205,1737862232303,-500.0,0.00016437,2]
[350422206,1737862232312,-500.0,0.00016437,2]
[350422207,1737862232322,-500.0,0.00016437,2]
[350422208,1737862232332,-500.0,0.00016437,2]
[350422209,1737862232341,-237.32733305,0.00016437,2]
[350422210,1737862232354,-262.67266695,0.00016437,2]
[350422211,1737862232363,-262.3782361,0.00016437,2]
[350422212,1737862232374,-237.6217639,0.00016437,2]
[350422213,1737862232384,-500.0,0.00016437,2]
[350422214,1737862232393,-500.0,0.00016437,2]
[350422215,1737862232402,-500.0,0.00016437,2]
[350422216,1737862232412,-500.0,0.00016437,2]
[350422217,1737862232421,-500.0,0.00016437,2]
[350422218,1737862232430,-500.0,0.00016437,2]
[350422219,1737862232440,-500.0,0.00016437,2]
[350422220,1737862232450,-500.0,0.00016437,2]
[350422221,1737862232459,-501.31007794,0.00016437,2]
[350422222,1737862232468,-500.0,0.00016437,2]
[350422223,1737862232477,-500.0,0.00016437,2]
[350422224,1737862232486,-500.0,0.00016437,2]
[350422225,1737862232495,-500.0,0.00016437,2]
[350422226,1737862232505,-500.0,0.00016437,2]
[350422227,1737862232515,-500.0,0.00016437,2]
[350422228,1737862232524,-500.0,0.00016437,2]
[350422229,1737862232533,-500.0,0.00016437,2]
[350422230,1737862232542,-500.0,0.00016437,2]
[350422231,1737862232553,-500.0,0.00016437,2]
[350422232,1737862232562,-500.0,0.00016437,2]
[350422233,1737862232571,-500.0,0.00016437,2]
[350422234,1737862232581,-500.0,0.00016437,2]
[350422235,1737862232590,-500.0,0.00016437,2]
[350422236,1737862232601,-500.0,0.00016437,2]
[350422237,1737862232611,-550.0,0.00016437,2]
[350422238,1737862232619,-500.0,0.00016437,2]
[350422239,1737862232629,-500.0,0.00016437,2]
[350422241,1737862232638,-500.0,0.00016437,2]
[350422243,1737862232647,-500.0,0.00016437,2]
[350422245,1737862232656,-500.0,0.00016437,2]
[350422247,1737862232665,-500.0,0.00016437,2]
[350422249,1737862232674,-410.31910313,0.00016437,2]
[350422251,1737862232683,-500.55981106,0.00016438,2]
[350422253,1737862232694,-501.21863866,0.00016438,2]
[350422255,1737862232704,-500.55552962,0.00016438,2]
[350422257,1737862232713,-500.0,0.00016438,2]
[350422259,1737862232722,-503.55936232,0.00016438,2]
[350422261,1737862232731,-255.57573853,0.00016438,2]
[350422262,1737862232742,-503.09330723,0.00016438,2]
[350422263,1737862232752,-503.95542672,0.00016438,2]
[350422264,1737862232761,-501.67762942,0.00016438,2]
[350422265,1737862232771,-500.0,0.00016438,2]
[350422266,1737862232781,-500.0,0.00016438,2]
[350422267,1737862232790,-502.445206,0.00016438,2]
[350422268,1737862232799,-500.0,0.00016438,2]
[350422269,1737862232808,-500.0,0.00016438,2]
[350422270,1737862232817,-500.0,0.00016438,2]
[350422271,1737862232828,-500.0,0.00016438,2]
[350422272,1737862232838,-455.94870795,0.00016438,2]
[350422273,1737862232847,-500.0,0.00016438,2]
[350422274,1737862232856,-500.0,0.00016438,2]
[350422275,1737862232866,-500.0,0.00016438,2]
[350422276,1737862232875,-500.0,0.00016438,2]
[350422277,1737862232884,-594.82518116,0.00016438,2]
[350422278,1737862232894,-500.0,0.00016438,2]
[350422279,1737862232903,-500.0,0.00016438,2]
[350422280,1737862232913,-500.0,0.00016438,2]
[350422281,1737862232922,-500.0,0.00016438,2]
[350422282,1737862232931,-500.0,0.00016438,2]
[350422283,1737862232941,-500.0,0.00016438,2]
[350422284,1737862232951,-500.0,0.00016438,2]
[350422285,1737862232961,-402.3773098,0.00016438,2]
[350422286,1737862232970,-500.0,0.00016438,2]
[350422287,1737862232979,-500.0,0.00016438,2]
[350422288,1737862232989,-494.0,0.00016438,2]
[350422289,1737862232998,-500.0,0.00016438,2]
[350422290,1737862233007,-500.0,0.00016438,2]
[350422291,1737862233016,-345.85210346,0.00016438,2]
[350422292,1737862233026,-500.0,0.00016438,2]
[350422293,1737862233035,-500.0,0.00016438,2]
[350422294,1737862233044,-231.22508448,0.00016438,2]
[350422295,1737862233054,-350.38126527,0.00016438,2]
[350422296,1737862233063,-500.0,0.00016438,2]
[350422297,1737862233074,-499.60741338,0.00016438,2]
[350422298,1737862233083,-500.0,0.00016438,2]
[350422299,1737862233092,-500.0,0.00016438,2]
[350422300,1737862233102,-503.75403089,0.00016438,2]
[350422301,1737862233118,-500.0,0.00016438,2]
[350422302,1737862233132,-500.0,0.00016438,2]
[350422303,1737862233142,-500.0,0.00016438,2]
[350422304,1737862233152,-500.0,0.00016438,2]
[350422305,1737862233162,-500.0,0.00016438,2]
[350422306,1737862233172,-60.05551566,0.00016438,2]
[350422329,1737862237836,-439.94448434,0.00016438,2]
[350422330,1737862237846,-500.0,0.00016438,2]
[350422331,1737862237856,-504.16045772,0.00016438,2]
[350422332,1737862238046,-502.12829675,0.00016438,2]
[350422333,1737862238060,-503.72276843,0.00016438,2]
[350422334,1737862238071,-500.0,0.00016438,2]
[350422335,1737862238081,-585.54,0.00016438,2]
[350422336,1737862238090,-500.0,0.00016438,2]
[350422337,1737862238099,-500.0,0.00016438,2]
[350422338,1737862238109,-505.98461491,0.00016438,2]
[350422339,1737862238119,-504.32873488,0.00016438,2]
[350422340,1737862238128,-501.1242237,0.00016438,2]
[350422341,1737862238138,-596.01105403,0.00016438,2]
[350422342,1737862238148,-501.99639634,0.00016438,2]
[350422343,1737862238157,-500.0,0.00016438,2]
[350422344,1737862238166,-504.39265027,0.00016438,2]
[350422345,1737862238175,-504.33640021,0.00016438,2]
[350422346,1737862238184,-500.0,0.00016438,2]
[350422347,1737862238193,-500.0,0.00016438,2]
[350422348,1737862238203,-200.0,0.00016438,2]
[350422349,1737862238217,-500.0,0.00016438,2]
[350422350,1737862238226,-500.0,0.00016438,2]
[350422351,1737862238235,-500.0,0.00016438,2]
[350422352,1737862238244,-503.92518585,0.00016438,2]
[350422353,1737862238254,-629.89997,0.00016438,2]
[350422354,1737862238263,-500.0,0.00016438,2]
[350422355,1737862238272,-500.0,0.00016438,2]
[350422356,1737862238282,-504.16080927,0.00016438,2]
[350422357,1737862238291,-507.74582983,0.00016438,2]
[350422358,1737862238300,-507.23435275,0.00016438,2]
[350422359,1737862238309,-500.0,0.00016438,2]
[350422360,1737862238318,-505.5219157,0.00016438,2]
[350422361,1737862238327,-500.0,0.00016438,2]
[350422362,1737862238337,-500.0,0.00016438,2]
[350422363,1737862238347,-380.08999096,0.00016438,2]
[350422364,1737862238355,-500.0,0.00016438,2]
[350422365,1737862238364,-500.0,0.00016438,2]
[350422366,1737862238373,-500.0,0.00016438,2]
[350422367,1737862238382,-500.0,0.00016438,2]
[350422368,1737862238391,-510.53750551,0.00016438,2]
[350422369,1737862238400,-500.0,0.00016438,2]
[350422370,1737862238410,-500.0,0.00016438,2]
[350422371,1737862238419,-496.91478532,0.00016438,2]
[350422372,1737862238429,-500.0,0.00016438,2]
[350422373,1737862238438,-500.0,0.00016438,2]
[350422374,1737862238448,-500.0,0.00016438,2]
[350422375,1737862238457,-500.0,0.00016438,2]
[350422376,1737862238467,-500.0,0.00016438,2]
[350422377,1737862238476,-500.0,0.00016438,2]
[350422378,1737862238486,-508.06093172,0.00016438,2]
[350422379,1737862238495,-500.0,0.00016438,2]
[350422380,1737862238504,-500.0,0.00016438,2]
[350422381,1737862238514,-500.0,0.00016438,2]
[350422382,1737862238523,-500.0,0.00016438,2]
[350422383,1737862238532,-500.0,0.00016438,2]
[350422384,1737862238542,-480.0,0.00016438,2]
[350422385,1737862238551,-505.70833553,0.00016438,2]
[350422386,1737862238560,-500.0,0.00016438,2]
[350422387,1737862238570,-500.0,0.00016438,2]
[350422388,1737862238580,-500.0,0.00016438,2]
[350422389,1737862238589,-504.46127386,0.00016438,2]
[350422390,1737862238598,-500.0,0.00016438,2]
[350422391,1737862238608,-500.0,0.00016438,2]
[350422392,1737862238617,-500.0,0.00016438,2]
[350422393,1737862238626,-510.2904637,0.00016438,2]
[350422394,1737862238636,-500.0,0.00016438,2]
[350422395,1737862238645,-500.0,0.00016438,2]
[350422396,1737862238654,-500.0,0.00016438,2]
[350422397,1737862238664,-500.0,0.00016438,2]
[350422398,1737862238673,-500.0,0.00016438,2]
[350422399,1737862238682,-500.0,0.00016438,2]
[350422400,1737862238696,-508.89086568,0.00016438,2]
[350422401,1737862238705,-351.36025391,0.00016438,2]
[350422402,1737862238714,-500.0,0.00016438,2]
[350422403,1737862238723,-500.0,0.00016438,2]
[350422404,1737862238733,-500.0,0.00016438,2]
[350422405,1737862238742,-500.0,0.00016438,2]
[350422406,1737862238752,-500.0,0.00016438,2]
[350422407,1737862238761,-500.0,0.00016438,2]
[350422408,1737862238770,-500.0,0.00016438,2]
[350422409,1737862238780,-500.0,0.00016438,2]
[350422410,1737862238789,-500.0,0.00016438,2]
[350422411,1737862238798,-500.0,0.00016438,2]
[350422412,1737862238807,-400.31430514,0.00016438,2]
[350422413,1737862238816,-500.0,0.00016438,2]
[350422414,1737862238826,-500.0,0.00016438,2]
[350422415,1737862238836,-500.0,0.00016438,2]
[350422416,1737862238845,-500.0,0.00016438,2]
[350422417,1737862238855,-500.0,0.00016438,2]
[350422418,1737862238865,-500.0,0.00016438,2]
[350422419,1737862238874,-500.0,0.00016438,2]
[350422420,1737862238883,-500.0,0.00016438,2]
[350422421,1737862238893,-500.0,0.00016438,2]
[350422422,1737862238902,-518.0479723,0.00016438,2]
[350422423,1737862238911,-564.8977829,0.00016438,2]
[350422424,1737862238920,-500.0,0.00016438,2]
[350422425,1737862238929,-503.58865223,0.00016438,2]
[350422426,1737862238940,-506.59950829,0.00016438,2]
[350422427,1737862238949,-508.18195639,0.00016438,2]
[350422428,1737862238959,-339.37298378,0.00016438,2]
[350422429,1737862238968,-500.0,0.00016438,2]
[350422430,1737862238977,-500.0,0.00016438,2]
[350422431,1737862238987,-504.78802466,0.00016438,2]
[350422432,1737862238996,-500.0,0.00016438,2]
[350422433,1737862239005,-500.0,0.00016438,2]
[350422434,1737862239014,-500.0,0.00016438,2]
[350422435,1737862239023,-500.0,0.00016438,2]
[350422436,1737862239032,-500.0,0.00016438,2]
[350422437,1737862239042,-500.0,0.00016438,2]
[350422438,1737862239050,-500.0,0.00016438,2]
[350422439,1737862239059,-505.82923426,0.00016438,2]
[350422440,1737862239069,-507.18865138,0.00016438,2]
[350422441,1737862239078,-503.91828794,0.00016438,2]
[350422442,1737862239088,-500.0,0.00016438,2]
[350422443,1737862239097,-500.0,0.00016438,2]
[350422444,1737862239106,-500.0,0.00016438,2]
[350422445,1737862239116,-500.0,0.00016438,2]
[350422446,1737862239125,-507.07130677,0.00016438,2]
[350422447,1737862239136,-503.31338269,0.00016438,2]
[350422448,1737862239146,-503.24344635,0.00016438,2]
[350422449,1737862239160,-500.0,0.00016438,2]
[350422450,1737862239169,-510.28965997,0.00016438,2]
[350422451,1737862239178,-500.0,0.00016438,2]
[350422452,1737862239188,-500.0,0.00016438,2]
[350422453,1737862239198,-500.0,0.00016438,2]
[350422454,1737862239207,-500.0,0.00016438,2]
[350422455,1737862239216,-508.77431037,0.00016438,2]
[350422456,1737862239226,-500.0,0.00016438,2]
[350422457,1737862239236,-500.0,0.00016438,2]
[350422458,1737862239245,-266.15735167,0.00016438,2]
[350422459,1737862239255,-500.0,0.00016438,2]
[350422460,1737862239264,-530.44938497,0.00016438,2]
[350422461,1737862239273,-504.01692315,0.00016438,2]
[350422462,1737862239282,-500.0,0.00016438,2]
[350422463,1737862239291,-500.0,0.00016438,2]
[350422464,1737862239300,-500.0,0.00016438,2]
[350422465,1737862239309,-500.0,0.00016438,2]
[350422466,1737862239318,-510.18783781,0.00016438,2]
[350422467,1737862239327,-500.0,0.00016438,2]
[350422468,1737862239337,-500.0,0.00016438,2]
[350422469,1737862239347,-500.0,0.00016438,2]
[350422470,1737862239356,-500.0,0.00016438,2]
[350422471,1737862239366,-500.0,0.00016438,2]
[350422472,1737862239375,-500.0,0.00016438,2]
[350422473,1737862239384,-500.0,0.00016438,2]
[350422474,1737862239393,-500.0,0.00016438,2]
[350422475,1737862239403,-500.0,0.00016438,2]
[350422476,1737862239412,-500.0,0.00016438,2]
[350422477,1737862239421,-500.0,0.00016438,2]
[350422478,1737862239433,-500.0,0.00016438,2]
[350422479,1737862239443,-500.0,0.00016438,2]
[350422480,1737862239454,-500.0,0.00016438,2]
[350422481,1737862239464,-500.0,0.00016438,2]
[350422482,1737862239473,-500.0,0.00016438,2]
[350422483,1737862239482,-1260.72,0.00016438,2]
[350422484,1737862239492,-500.0,0.00016438,2]
[350422485,1737862239501,-697.52,0.00016438,2]
[350422486,1737862239510,-636.01,0.00016438,2]
[350422487,1737862239519,-500.0,0.00016438,2]
[350422488,1737862239529,-500.0,0.00016438,2]
[350422489,1737862239538,-500.0,0.00016438,2]
[350422490,1737862239548,-500.0,0.00016438,2]
[350422491,1737862239557,-2275.08,0.00016438,2]
[350422492,1737862239567,-500.0,0.00016438,2]
[350422493,1737862239576,-500.0,0.00016438,2]
[350422494,1737862239585,-502.19201491,0.00016438,2]
[350422495,1737862239595,-500.0,0.00016438,2]
[350422496,1737862239604,-504.01960177,0.00016438,2]
[350422497,1737862239613,-500.0,0.00016438,2]
[350422498,1737862239622,-500.0,0.00016438,2]
[350422499,1737862239631,-500.0,0.00016438,2]
[350422500,1737862239640,-609.35,0.00016438,2]
[350422501,1737862239649,-514.03423558,0.00016438,2]
[350422502,1737862239658,-500.0,0.00016438,2]
[350422503,1737862239667,-500.0,0.00016438,2]
[350422504,1737862239676,-502.81267897,0.00016438,2]
[350422505,1737862239685,-500.0,0.00016438,2]
[350422506,1737862239697,-500.0,0.00016438,2]
[350422507,1737862239707,-500.0,0.00016438,2]
[350422508,1737862239715,-500.0,0.00016438,2]
[350422509,1737862239724,-500.0,0.00016438,2]
[350422510,1737862239735,-500.0,0.00016438,2]
[350422511,1737862239744,-500.0,0.00016438,2]
[350422512,1737862239754,-500.0,0.00016438,2]
[350422513,1737862239763,-500.0,0.00016438,2]
[350422514,1737862239775,-500.0,0.00016438,2]
[350422515,1737862239784,-500.0,0.00016438,2]
[350422516,1737862239793,-500.0,0.00016438,2]
[350422517,1737862239803,-500.0,0.00016438,2]
[350422518,1737862239812,-500.0,0.00016438,2]
[350422519,1737862239822,-500.0,0.00016438,2]
[350422520,1737862239831,-500.0,0.00016438,2]
[350422521,1737862239840,-500.0,0.00016438,2]
[350422522,1737862239849,-500.0,0.00016438,2]
[350422523,1737862239859,-500.0,0.00016438,2]
[350422525,1737862239868,-500.0,0.00016438,2]
[350422526,1737862239878,-58.15990799,0.00016438,2]
[350422585,1737862242937,-441.84009201,0.00016438,2]
[350422587,1737862242947,-58.15990799,0.00016438,2]
[350423320,1737862495378,1854.44,0.000219,31]
[350423321,1737862495429,1854.44,0.000219,31]
[350423322,1737862495489,1854.44,0.000219,31]
[350423323,1737862495550,1854.44,0.000219,31]
[350423324,1737862495612,1854.44,0.000219,31]
[350423325,1737862495673,1854.44,0.000219,31]
[350423326,1737862495733,1854.44,0.000219,31]
[350423327,1737862495799,1854.44,0.000219,31]
[350423328,1737862495856,1854.44,0.000219,31]
[350423329,1737862495914,1854.44,0.000219,31]
[350423330,1737862495975,1854.44,0.000219,31]
[350423331,1737862496037,1854.44,0.000219,31]
[350423332,1737862496281,1854.44,0.000219,31]
[350423333,1737862496322,1854.44,0.000219,31]
[350423334,1737862496363,1854.44,0.000219,31]
[350423335,1737862496408,1854.44,0.000219,31]
[350423337,1737862923807,400.0,0.00013973,2]
[350423338,1737863107516,1557.88,0.000219,31]
[350423339,1737863107597,1557.88,0.000219,31]
[350423340,1737863107638,1557.88,0.000219,31]
[350423341,1737863107699,1557.88,0.000219,31]
[350423342,1737863107759,1557.88,0.000219,31]
[350423343,1737863107809,1557.88,0.000219,31]
[350423344,1737863107869,1557.88,0.000219,31]
[350423345,1737863107931,1557.88,0.000219,31]
[350423346,1737863108002,1557.88,0.000219,31]
[350423347,1737863108068,1557.88,0.000219,31]
[350423348,1737863108116,1557.88,0.000219,31]
[350423349,1737863108177,1557.88,0.000219,31]
[350423350,1737863108231,1557.88,0.000219,31]
[350423351,1737863108295,1557.88,0.000219,31]
[350423352,1737863108354,1557.88,0.000219,31]
[350423353,1737863108693,1557.88,0.000219,31]
[350423420,1737863432216,-275.92335055,0.00015694,2]
[350423422,1737863432225,-38.62357628,0.00016338,2]
[350423424,1737863432237,-412.04658793,0.00016338,2]
[350423426,1737863432247,-300.0,0.00016437,2]
[350423428,1737863432256,-500.0,0.00016438,2]
[350423431,1737863432266,-500.0,0.00016438,2]
[350423433,1737863432276,-500.0,0.00016438,2]
[350423435,1737863432285,-262.2161538,0.00016438,2]
[350423437,1737863432297,-500.0,0.00016438,2]
[350423439,1737863432307,-500.0,0.00016438,2]
[350423441,1737863432316,-335.05,0.00016438,2]
[350423443,1737863432325,-500.0,0.00016438,2]
[350423445,1737863432334,-500.0,0.00016438,2]
[350423447,1737863432343,-500.0,0.00016438,2]
[350423449,1737863432352,-500.0,0.00016438,2]
[350423451,1737863432362,-589.9,0.00016438,2]
[350423453,1737863432371,-500.0,0.00016438,2]
[350423455,1737863432380,-500.0,0.00016438,2]
[350423457,1737863432389,-216.27498767,0.00016438,2]
[350423459,1737863432398,-500.0,0.00016438,2]
[350423461,1737863432407,-500.0,0.00016438,2]
[350423463,1737863432416,-500.0,0.00016438,2]
[350423465,1737863432425,-196.92875019,0.00016438,2]
[350423711,1737863438010,-303.07124981,0.00016438,2]
[350423712,1737863438021,-444.12347096,0.00016438,2]
[350423713,1737863438031,-556.7,0.00016438,2]
[350423714,1737863438040,-500.0,0.00016438,2]
[350423715,1737863438049,-500.0,0.00016438,2]
[350423716,1737863438059,-500.0,0.00016438,2]
[350423717,1737863438068,-560.98,0.00016438,2]
[350423718,1737863438078,-383.2,0.00016438,2]
[350423719,1737863438088,-500.0,0.00016438,2]
[350423720,1737863438100,-162.74,0.00016438,2]
[350423721,1737863438111,-500.0,0.00016438,2]
[350423722,1737863438120,-333.46,0.00016438,2]
[350423724,1737863438129,-500.0,0.00016438,2]
[350423726,1737863438139,-500.0,0.00016438,2]
[350423727,1737863438148,-503.7550336,0.00016438,2]
[350423728,1737863438157,-557.71408841,0.00016438,2]
[350423729,1737863438167,-513.38710062,0.00016438,2]
[350423730,1737863438176,-305.0461941,0.00016438,2]
[350423731,1737863438185,-500.0,0.00016438,2]
[350423732,1737863438196,-579.91,0.00016438,2]
[350423733,1737863438207,-500.0,0.00016438,2]
[350423734,1737863438217,-436.2825797,0.00016438,2]
[350423735,1737863438226,-500.0,0.00016438,2]
[350423736,1737863438235,-500.0,0.00016438,2]
[350423737,1737863438245,-500.0,0.00016438,2]
[350423738,1737863438254,-500.0,0.00016438,2]
[350423739,1737863438263,-500.0,0.00016438,2]
[350423740,1737863438272,-500.0,0.00016438,2]
[350423741,1737863438281,-504.44479647,0.00016438,2]
[350423742,1737863438291,-528.2733341,0.00016438,2]
[350423743,1737863438300,-668.46,0.00016438,2]
[350423744,1737863438309,-646.24602142,0.00016438,2]
[350423745,1737863438320,-1208.19,0.00016438,2]
[350423746,1737863438329,-2180.29,0.00016438,2]
[350423747,1737863438338,-500.0,0.00016438,2]
[350423748,1737863438348,-500.0,0.00016438,2]
[350423749,1737863438358,-1146.17,0.00016438,2]
[350423750,1737863438367,-500.0,0.00016438,2]
[350423751,1737863438377,-500.0,0.00016438,2]
[350423752,1737863438386,-627.24735317,0.00016438,2]
[350423753,1737863438396,-500.0,0.00016438,2]
[350423754,1737863438405,-500.0,0.00016438,2]
[350423755,1737863438414,-500.0,0.00016438,2]
[350423756,1737863438423,-500.0,0.00016438,2]
[350423757,1737863438433,-268.34763976,0.00016438,2]
[350423758,1737863438443,-500.0,0.00016438,2]
[350423759,1737863438455,-500.0,0.00016438,2]
[350423760,1737863438466,-500.0,0.00016438,2]
[350423761,1737863438476,-636.62,0.00016438,2]
[350423762,1737863438485,-500.0,0.00016438,2]
[350423763,1737863438494,-500.0,0.00016438,2]
[350423764,1737863438503,-500.0,0.00016438,2]
[350423765,1737863438512,-500.0,0.00016438,2]
[350423766,1737863438521,-500.0,0.00016438,2]
[350423767,1737863438531,-500.0,0.00016438,2]
[350423768,1737863438540,-502.67290572,0.00016438,2]
[350423769,1737863438549,-583.88,0.00016438,2]
[350423770,1737863438559,-500.0,0.00016438,2]
[350423771,1737863438568,-202.13662313,0.00016438,2]
[350423814,1737863616327,3000.0,0.00022,30]
[350423816,1737863719600,1308.74,0.000219,31]
[350423817,1737863719652,1308.74,0.000219,31]
[350423818,1737863719715,1308.74,0.000219,31]
[350423819,1737863719780,1308.74,0.000219,31]
[350423820,1737863719834,1308.74,0.000219,31]
[350423821,1737863719899,1308.74,0.000219,31]
[350423822,1737863719955,1308.74,0.000219,31]
[350423823,1737863720016,1308.74,0.000219,31]
[350423824,1737863720080,1308.74,0.000219,31]
[350423825,1737863720138,1308.74,0.000219,31]
[350423826,1737863720202,1308.74,0.000219,31]
[350423827,1737863720260,1308.74,0.000219,31]
[350423828,1737863720328,1308.74,0.000219,31]
[350423829,1737863720374,1308.74,0.000219,31]
[350423830,1737863720446,1308.74,0.000219,31]
[350423831,1737863720502,1308.74,0.000219,31]
[350423832,1737863940330,400.0,0.00013973,2]
[350423833,1737864029439,3002.62870495,0.00024,120]
[350423835,1737864331687,1099.45,0.000219,31]
[350423836,1737864331744,1099.45,0.000219,31]
[350423837,1737864331861,1099.45,0.000219,31]
[350423838,1737864331914,1099.45,0.000219,31]
[350423839,1737864331955,1099.45,0.000219,31]
[350423840,1737864331995,1099.45,0.000219,31]
[350423841,1737864332053,1099.45,0.000219,31]
[350423842,1737864332116,1099.45,0.000219,31]
[350423843,1737864332339,1099.45,0.000219,31]
[350423844,1737864332383,1099.45,0.000219,31]
[350423845,1737864332434,1099.45,0.000219,31]
[350423846,1737864332476,1099.45,0.000219,31]
[350423847,1737864332517,1099.45,0.000219,31]
[350423848,1737864332560,1099.45,0.000219,31]
[350423849,1737864332600,1099.45,0.000219,31]
[350423850,1737864332646,1099.45,0.000219,31]
[350423851,1737864413337,372.58659142,0.00014913,2]
[350423852,1737864476446,491.0,0.00024,120]
[350423879,1737864632279,-156.08641151,0.00015216,2]
[350423881,1737864632291,-186.34025666,0.00015525,2]
[350423887,1737864632333,-626.88647709,0.00015525,2]
[350423890,1737864632348,-6972.05446915,0.00015525,2]
[350423892,1737864632360,-302.43812797,0.00016172,2]
[350423894,1737864632372,-300.0,0.00016172,2]
[350423896,1737864632382,-1932.40398343,0.00016173,2]
[350423898,1737864632392,-394.33639371,0.00016338,2]
[350423900,1737864632401,-500.0,0.00016438,2]
[350423903,1737864632413,-502.96828062,0.00016438,2]
[350423905,1737864632424,-10.07027792,0.00016438,2]
[350424029,1737864640286,-492.79700792,0.00016438,2]
[350424030,1737864640296,-509.88665705,0.00016438,2]
[350424038,1737864643220,-0.51949724,0.00016438,2]
[350424039,1737864643230,-504.12994658,0.00016438,2]
[350424040,1737864643241,-500.0,0.00016438,2]
[350424041,1737864643251,-500.0,0.00016438,2]
[350424042,1737864643260,-500.0,0.00016438,2]
[350424043,1737864643270,-500.0,0.00016438,2]
[350424044,1737864643280,-500.0,0.00016438,2]
[350424045,1737864643290,-339.15055618,0.00016438,2]
[350424046,1737864643302,-160.84944382,0.00016438,2]
[350424047,1737864643313,-500.0,0.00016438,2]
[350424048,1737864643322,-500.0,0.00016438,2]
[350424049,1737864643332,-500.0,0.00016438,2]
[350424050,1737864643342,-442.42,0.00016438,2]
[350424052,1737864643352,-500.0,0.00016438,2]
[350424053,1737864643362,-500.0,0.00016438,2]
[350424054,1737864643372,-179.4,0.00016438,2]
[350424055,1737864643382,-500.0,0.00016438,2]
[350424056,1737864643392,-500.0,0.00016438,2]
[350424057,1737864643402,-467.86987481,0.00016438,2]
[350424058,1737864643412,-500.0,0.00016438,2]
[350424059,1737864643422,-500.0,0.00016438,2]
[350424060,1737864643433,-500.0,0.00016438,2]
[350424061,1737864643444,-500.0,0.00016438,2]
[350424062,1737864643454,-500.0,0.00016438,2]
[350424063,1737864643464,-500.0,0.00016438,2]
[350424064,1737864643475,-413.92976909,0.00016438,2]